[Event "103rd Marshall Chess Club-ch 2019"]
[Site "New York"]
[Date "2019.11.15"]
[Round "3"]
[White "Barbosa, Oliver"]
[Black "Niemann, Hans Moke"]
[Result "0-1"]
[ECO "A09"]
[WhiteElo "2532"]
[BlackElo "2436"]
[Annotator "ChessBase"]
[PlyCount "82"]
[EventDate "2019.11.14"]
[EventType "tourn"]
[EventCountry "USA"]
[SourceTitle "playchess.com"]
[Source "ChessBase"]
[SourceQuality "1"]
[TimeControl "40/5400+30:900+30"]

1. Nf3 {[%emt 0:00:00]} d5 {[%emt 0:00:19]} 2. c4 {[%emt 0:00:43]} d4 {[%emt 0:01:36]} 3. g3 {[%emt 0:00:01]} Nc6 {[%emt 0:00:52]} 4. Bg2 {[%emt 0:00:11]} e5 {[%emt 0:00:08]} 5. d3 {[%emt 0:00:01]} Bb4+ {[%emt 0:00:38]} 6. Bd2 {[%emt 0:04:05]} a5 {[%emt 0:00:05]} 7. O-O {[%emt 0:00:18]} Nf6 {[%emt 0:00:07]} 8. Bg5 {[%emt 0:05:35]} Be7 {[%emt 0:03:44]} 9. Bxf6 {[%emt 0:09:25]} Bxf6 {[%emt 0:00:12]} 10. Nbd2 {[%emt 0:00:07]} O-O {[%emt 0:00:23]} 11. a3 {[%emt 0:00:03]} Be7 {[%emt 0:02:13]} 12. Ne1 {[%emt 0:02:08]} Nb8 {[%emt 0:01:09]} 13. Nc2 {[%emt 0:00:24]} a4 {[%emt 0:01:13]} 14. b4 {[%emt 0:09:42]} axb3 {[%emt 0:00:20]} 15. Nxb3 {[%emt 0:00:02]} c6 {[%emt 0:00:35]} 16. e3 {[%emt 0:05:49]} dxe3 {[%emt 0:00:45]} 17. fxe3 {[%emt 0:00:14]} Be6 {[%emt 0:02:36]} 18. Qe2 {[%emt 0:02:22]} Nd7 {[%emt 0:00:24]} 19. Rfb1 {[%emt 0:03:28]} Qc7 {[%emt 0:06:53]} 20. Kh1 {[%emt 0:05:19]} Ra4 {[%emt 0:01:09]} 21. Nd2 {[%emt 0:03:47]} Rfa8 {[%emt 0:00:16]} 22. Rb2 {[%emt 0:01:05]} R4a7 {[%emt 0:02:13]} 23. Rab1 {[%emt 0:04:55]} Rb8 {[%emt 0:01:01]} 24. Ra1 {[%emt 0:03:23]} Nb6 {[%emt 0:01:45]} 25. Rb3 {[%emt 0:01:16]} Na4 {[%emt 0:00:38]} 26. d4 {[%emt 0:02:53]} b5 {[%emt 0:00:34]} 27. Nb4 {[%emt 0:08:08]} bxc4 {[%emt 0:04:00]} 28. Nxc4 {[%emt 0:00:08]} Nb6 {[%emt 0:01:34]} 29. d5 {[%emt 0:08:40]} Nxd5 {[%emt 0:00:18]} 30. Rd1 {[%emt 0:02:12]} Bxb4 {[%emt 0:00:32]} 31. Qb2 {[%emt 0:03:53]} Nc3 {[%emt 0:01:32]} 32. Rxc3 {[%emt 0:01:31]} Bxc3 {[%emt 0:00:10]} 33. Qxc3 {[%emt 0:00:05]} Bxc4 {[%emt 0:00:08]} 34. Qxc4 {[%emt 0:00:01]} Rxa3 {[%emt 0:00:22]} 35. Bxc6 {[%emt 0:00:14]} Rc8 {[%emt 0:00:10]} 36. Qe4 {[%emt 0:00:15]} g6 {[%emt 0:00:50]} 37. Bd5 {[%emt 0:00:00]} Kg7 {[%emt 0:00:11]} 38. Qf3 {[%emt 0:00:25]} Rc3 {[%emt 0:00:35]} 39. Rf1 {[%emt 0:00:17]} f5 {[%emt 0:01:01]} 40. g4 {[%emt 0:00:48]} f4 {[%emt 0:00:23]} 41. g5 {[%emt 0:15:02]} Rc1 {[%emt 0:17:45]} 0-1

[Event "103rd Marshall Chess Club-ch 2019"]
[Site "New York"]
[Date "2019.11.15"]
[Round "4"]
[White "Paragua, Mark"]
[Black "Korley, Kassa"]
[Result "1-0"]
[ECO "A13"]
[WhiteElo "2496"]
[BlackElo "2447"]
[Annotator "ChessBase"]
[PlyCount "75"]
[EventDate "2019.11.14"]
[EventType "tourn"]
[EventCountry "USA"]
[SourceTitle "playchess.com"]
[Source "ChessBase"]
[SourceQuality "1"]
[TimeControl "40/5400+30:900+30"]

1. Nf3 {[%emt 0:00:00]} d5 {[%emt 0:00:05]} 2. c4 {[%emt 0:00:07]} e6 {[%emt 0:00:07]} 3. g3 {[%emt 0:00:09]} dxc4 {[%emt 0:00:10]} 4. Qa4+ {[%emt 0:00:43]} Nd7 {[%emt 0:00:34]} 5. Bg2 {[%emt 0:00:47]} a6 {[%emt 0:00:34]} 6. Qxc4 {[%emt 0:00:14]} b5 {[%emt 0:00:07]} 7. Qc2 {[%emt 0:00:04]} Bb7 {[%emt 0:00:07]} 8. O-O {[%emt 0:00:10]} Ngf6 {[%emt 0:02:15]} 9. d3 {[%emt 0:01:55]} c5 {[%emt 0:08:27]} 10. Nc3 {[%emt 0:04:46]} Rc8 {[%emt 0:05:09]} 11. a4 {[%emt 0:04:20]} Qb6 {[%emt 0:08:31]} 12. axb5 {[%emt 0:04:51]} axb5 {[%emt 0:00:05]} 13. e4 {[%emt 0:00:27]} Be7 {[%emt 0:01:18]} 14. h3 {[%emt 0:01:37]} Bc6 {[%emt 0:04:26]} 15. Be3 {[%emt 0:01:10]} Qb7 {[%emt 0:00:05]} 16. Nd2 {[%emt 0:00:33]} O-O {[%emt 0:01:41]} 17. Nb3 {[%emt 0:00:25]} Qb8 {[%emt 0:00:22]} 18. Na5 {[%emt 0:02:31]} Ba8 {[%emt 0:00:12]} 19. Qb3 {[%emt 0:02:56]} c4 {[%emt 0:04:54]} 20. dxc4 {[%emt 0:00:53]} b4 {[%emt 0:00:07]} 21. Nb5 {[%emt 0:01:29]} Bxe4 {[%emt 0:00:27]} 22. Na7 {[%emt 0:03:26]} Nc5 {[%emt 0:06:23]} 23. Bxc5 {[%emt 0:00:20]} Bxc5 {[%emt 0:00:07]} 24. Nxc8 {[%emt 0:00:10]} Rxc8 {[%emt 0:00:04]} 25. Kh2 {[%emt 0:21:17]} h5 {[%emt 0:03:26]} 26. Rfe1 {[%emt 0:07:46]} Bxf2 {[%emt 0:04:35]} 27. Rxe4 {[%emt 0:04:48]} Nxe4 {[%emt 0:00:39]} 28. Bxe4 {[%emt 0:00:08]} Qe5 {[%emt 0:04:09]} 29. Bg2 {[%emt 0:09:35]} h4 {[%emt 0:02:57]} 30. Nc6 {[%emt 0:02:20]} Bxg3+ {[%emt 0:04:12]} 31. Kh1 {[%emt 0:01:01]} Qc5 {[%emt 0:01:41]} 32. Qf3 {[%emt 0:03:09]} Bc7 {[%emt 0:11:34]} 33. Rd1 {[%emt 0:01:04]} Bd6 {[%emt 0:00:41]} 34. b3 {[%emt 0:01:22]} g6 {[%emt 0:00:15]} 35. Qe4 {[%emt 0:03:17]} Rc7 {[%emt 0:01:30]} 36. Nd4 {[%emt 0:01:00]} Qh5 {[%emt 0:05:49]} 37. Bf3 {[%emt 0:04:37]} Qg5 {[%emt 0:00:04]} 38. Nb5 {[%emt 0:03:09]} 1-0

[Event "103rd Marshall Chess Club-ch 2019"]
[Site "New York"]
[Date "2019.11.16"]
[Round "5"]
[White "Steingrimsson, Hedinn"]
[Black "Sturt, Raven"]
[Result "1-0"]
[ECO "A81"]
[WhiteElo "2549"]
[BlackElo "2466"]
[Annotator "ChessBase"]
[PlyCount "47"]
[EventDate "2019.11.14"]
[EventType "tourn"]
[EventCountry "USA"]
[SourceTitle "playchess.com"]
[Source "ChessBase"]
[SourceQuality "1"]
[TimeControl "40/5400+30:900+30"]

1. d4 {[%emt 0:00:00]} f5 {[%emt 0:00:01]} 2. Nf3 {[%emt 0:00:31]} Nf6 {[%emt 0:00:08]} 3. g3 {[%emt 0:00:04]} g6 {[%emt 0:00:08]} 4. Bg2 {[%emt 0:00:19]} Bg7 {[%emt 0:00:04]} 5. b3 {[%emt 0:00:05]} O-O {[%emt 0:00:15]} 6. O-O {[%emt 0:00:23]} b6 {[%emt 0:01:54]} 7. Ne5 {[%emt 0:01:59]} c6 {[%emt 0:00:11]} 8. Nd2 {[%emt 0:02:07]} Qe8 {[%emt 0:08:16]} 9. Bb2 {[%emt 0:01:24]} d6 {[%emt 0:03:23]} 10. Nd3 {[%emt 0:00:58]} Na6 {[%emt 0:03:49]} 11. Re1 {[%emt 0:06:32]} Nc7 {[%emt 0:03:46]} 12. c4 {[%emt 0:08:07]} Ne6 {[%emt 0:05:33]} 13. e4 {[%emt 0:09:03]} fxe4 {[%emt 0:01:50]} 14. Nxe4 {[%emt 0:00:00]} Nxe4 {[%emt 0:11:37]} 15. Rxe4 {[%emt 0:00:01]} Ng5 {[%emt 0:00:09]} 16. Re3 {[%emt 0:00:04]} Nh3+ {[%emt 0:01:03]} 17. Bxh3 {[%emt 0:03:29]} Bxh3 {[%emt 0:00:26]} 18. g4 {[%emt 0:00:00]} c5 {[%emt 0:04:39]} 19. d5 {[%emt 0:08:46]} Bxb2 {[%emt 0:02:37]} 20. Nxb2 {[%emt 0:00:00]} Qf7 {[%emt 0:00:06]} 21. Nd3 {[%emt 0:00:02]} Bxg4 {[%emt 0:02:05]} 22. Qxg4 {[%emt 0:00:02]} Kh8 {[%emt 0:00:08]} 23. Rae1 {[%emt 0:00:07]} Rae8 {[%emt 0:00:04]} 24. Qg5 {[%emt 0:01:00]} 1-0

[Event "103rd Marshall Chess Club-ch 2019"]
[Site "New York"]
[Date "2019.11.16"]
[Round "5"]
[White "Barbosa, Oliver"]
[Black "Khamrakulov, Djurabek"]
[Result "1/2-1/2"]
[ECO "D27"]
[WhiteElo "2532"]
[BlackElo "2517"]
[Annotator "ChessBase"]
[PlyCount "62"]
[EventDate "2019.11.14"]
[EventType "tourn"]
[EventCountry "USA"]
[SourceTitle "playchess.com"]
[Source "ChessBase"]
[SourceQuality "1"]
[TimeControl "40/5400+30:900+30"]

1. d4 {[%emt 0:00:00]} d5 {[%emt 0:00:18]} 2. c4 {[%emt 0:00:20]} dxc4 {[%emt 0:00:17]} 3. e3 {[%emt 0:00:27]} Nf6 {[%emt 0:00:51]} 4. Bxc4 {[%emt 0:00:07]} e6 {[%emt 0:00:14]} 5. Nf3 {[%emt 0:00:08]} a6 {[%emt 0:00:29]} 6. O-O {[%emt 0:00:35]} c5 {[%emt 0:00:13]} 7. dxc5 {[%emt 0:00:26]} Bxc5 {[%emt 0:00:18]} 8. Qxd8+ {[%emt 0:00:38]} Kxd8 {[%emt 0:00:05]} 9. b3 {[%emt 0:00:40]} Ke7 {[%emt 0:00:28]} 10. Bb2 {[%emt 0:00:43]} Nbd7 {[%emt 0:00:39]} 11. Nbd2 {[%emt 0:00:30]} b6 {[%emt 0:00:43]} 12. Rfd1 {[%emt 0:00:37]} Bb7 {[%emt 0:00:29]} 13. Rac1 {[%emt 0:00:24]} Rac8 {[%emt 0:00:27]} 14. Kf1 {[%emt 0:00:17]} Bd6 {[%emt 0:00:42]} 15. Be2 {[%emt 0:00:22]} b5 {[%emt 0:00:55]} 16. a4 {[%emt 0:01:16]} bxa4 {[%emt 0:01:57]} 17. bxa4 {[%emt 0:00:07]} Bb4 {[%emt 0:01:18]} 18. a5 {[%emt 0:13:24]} Rxc1 {[%emt 0:03:01]} 19. Rxc1 {[%emt 0:00:19]} Rc8 {[%emt 0:01:11]} 20. Rxc8 {[%emt 0:02:06]} Bxc8 {[%emt 0:00:01]} 21. Nc4 {[%emt 0:00:07]} Bb7 {[%emt 0:01:14]} 22. Nd4 {[%emt 0:01:10]} Ne4 {[%emt 0:01:47]} 23. Nc2 {[%emt 0:04:22]} Nd2+ {[%emt 0:00:57]} 24. Nxd2 {[%emt 0:00:07]} Bxd2 {[%emt 0:00:07]} 25. Ba3+ {[%emt 0:00:48]} Kd8 {[%emt 0:00:43]} 26. Nb4 {[%emt 0:02:10]} Ne5 {[%emt 0:01:49]} 27. Nxa6 {[%emt 0:00:40]} Bxa5 {[%emt 0:01:03]} 28. Nc5 {[%emt 0:00:43]} Bc8 {[%emt 0:02:07]} 29. Ne4 {[%emt 0:01:21]} f5 {[%emt 0:07:19]} 30. Nd6 {[%emt 0:00:59]} Bc7 {[%emt 0:00:29]} 31. Nxc8 {[%emt 0:01:52]} Kxc8 {[%emt 0:00:01]} 1/2-1/2

[Event "103rd Marshall Chess Club-ch 2019"]
[Site "New York"]
[Date "2019.11.16"]
[Round "5"]
[White "Korley, Kassa"]
[Black "Niemann, Hans Moke"]
[Result "1/2-1/2"]
[ECO "E20"]
[WhiteElo "2447"]
[BlackElo "2436"]
[Annotator "ChessBase"]
[PlyCount "79"]
[EventDate "2019.11.14"]
[EventType "tourn"]
[EventCountry "USA"]
[SourceTitle "playchess.com"]
[Source "ChessBase"]
[SourceQuality "1"]
[TimeControl "40/5400+30:900+30"]

1. d4 {[%emt 0:00:00]} Nf6 {[%emt 0:00:01]} 2. c4 {[%emt 0:00:01]} e6 {[%emt 0:00:05]} 3. Nc3 {[%emt 0:00:03]} Bb4 {[%emt 0:00:29]} 4. g3 {[%emt 0:00:05]} d5 {[%emt 0:03:11]} 5. Bg2 {[%emt 0:00:03]} O-O {[%emt 0:00:05]} 6. a3 {[%emt 0:00:13]} Bxc3+ {[%emt 0:01:01]} 7. bxc3 {[%emt 0:00:00]} c5 {[%emt 0:01:33]} 8. cxd5 {[%emt 0:13:10]} exd5 {[%emt 0:00:49]} 9. e3 {[%emt 0:14:45]} Bf5 {[%emt 0:08:19]} 10. Ne2 {[%emt 0:03:30]} Nc6 {[%emt 0:03:10]} 11. O-O {[%emt 0:01:14]} c4 {[%emt 0:00:20]} 12. f3 {[%emt 0:07:16]} h5 {[%emt 0:13:19]} 13. e4 {[%emt 0:12:47]} dxe4 {[%emt 0:08:21]} 14. fxe4 {[%emt 0:00:00]} Bxe4 {[%emt 0:00:15]} 15. Bg5 {[%emt 0:00:24]} Bd3 {[%emt 0:01:29]} 16. Bxf6 {[%emt 0:01:47]} gxf6 {[%emt 0:00:53]} 17. Rf2 {[%emt 0:04:51]} Qa5 {[%emt 0:00:04]} 18. Qd2 {[%emt 0:04:35]} Qg5 {[%emt 0:00:31]} 19. Nf4 {[%emt 0:00:15]} Bh7 {[%emt 0:00:08]} 20. h4 {[%emt 0:02:50]} Qh6 {[%emt 0:00:11]} 21. Raf1 {[%emt 0:03:27]} Rad8 {[%emt 0:00:01]} 22. Qe2 {[%emt 0:02:17]} Rfe8 {[%emt 0:01:21]} 23. Qxc4 {[%emt 0:01:20]} Ne7 {[%emt 0:00:11]} 24. Nd5 {[%emt 0:11:13]} Nxd5 {[%emt 0:00:05]} 25. Bxd5 {[%emt 0:00:01]} Qg7 {[%emt 0:00:04]} 26. Bxb7 {[%emt 0:03:37]} Rb8 {[%emt 0:07:34]} 27. Qc7 {[%emt 0:03:35]} Kh8 {[%emt 0:01:43]} 28. Kh2 {[%emt 0:02:43]} Bd3 {[%emt 0:02:55]} 29. Re1 {[%emt 0:03:46]} f5 {[%emt 0:00:00]} 30. Re7 {[%emt 0:01:30]} Rxe7 {[%emt 0:00:08]} 31. Qxb8+ {[%emt 0:01:45]} Kh7 {[%emt 0:00:04]} 32. Bf3 {[%emt 0:01:11]} Qh6 {[%emt 0:00:16]} 33. Qf4 {[%emt 0:01:19]} Qxf4 {[%emt 0:00:07]} 34. gxf4 {[%emt 0:00:00]} Rc7 {[%emt 0:00:04]} 35. Bxh5 {[%emt 0:01:21]} Rxc3 {[%emt 0:00:59]} 36. Bxf7 {[%emt 0:00:03]} Kg7 {[%emt 0:00:36]} 37. Be6 {[%emt 0:00:00]} Kf6 {[%emt 0:00:11]} 38. Bg8 {[%emt 0:00:40]} Be4 {[%emt 0:00:42]} 39. h5 {[%emt 0:00:02]} Rc1 {[%emt 0:00:09]} 40. Kh3 {[%emt 0:01:34]} 1/2-1/2